Cogmind - Beta 10.2 @@@ ROGUE MODE // 2021.11.10 @ 17:31:36 Player: raddakar Result: Destroyed by H-55 Commando with Gauss Rifle Performance ------------- Evolutions (1) 500 Regions Visited (5) 1000 Robots Destroyed (52) 260 Value Destroyed (1293) 1293 Prototype IDs (25) 500 Alien Tech Used (0) 0 Bonus (300) 300 TOTAL SCORE: 3853 Bonus ------- Aligned with FarCom 300 Cogmind --------- Core Integrity 0/400 Matter 237/300 Energy 280/280 System Corruption 4% Temperature Cool (0) Movement Treading (180) Ox1 Location -9/Exiles Parts ------- > --- POWER (1) -------- Cooled Ion Engine > --- PROPULSION (2) --- Light Treads Light Treads > --- UTILITY (4) ------ Large Storage Unit Large Storage Unit > --- WEAPON (2) ------- AWS/Gauss > --- INVENTORY (16) --- Light Treads Light Treads High-capacity Matter Pod (200) Experimental Sensor Array Transport Network Coupler EM Pulse Gun EM Shotgun Arc Projector Shotgun Grenade Launcher Makeshift Sword Peak State ------------ > --- POWER ------------ Cooled Ion Engine > --- PROPULSION ------- Light Treads Light Treads > --- UTILITY ---------- Large Storage Unit Large Storage Unit Improved Medium Armor Plating Hacking Suite > --- WEAPON ----------- AWS/Gauss > --- INVENTORY -------- Cooled Ion Engine Light Treads Light Treads Light Treads Light Treads High-capacity Matter Pod Experimental Sensor Array Transport Network Coupler EM Pulse Gun EM Shotgun Arc Projector Shotgun Grenade Launcher Makeshift Sword [Rating: 32] Favorites ----------- Power Cooled Ion Engine Engine Cooled Ion Engine Propulsion Light Treads Treads Light Treads Leg Aluminum Leg Utility Large Storage Unit Device Experimental Sensor Array Storage Large Storage Unit Processor Improved Signal Interpreter Hackware Hacking Suite Protection Improved Medium Armor Plating Weapon Heavy Assault Rifle Energy Gun EM Shotgun Ballistic Gun Heavy Assault Rifle Ballistic Cannon Light Cannon Build | -11 -10 -10 -9 -9 -9 ------- Run | Scr Mat Min Mat Min Exi Slots Evolved 2 | . . . 2 . . Power . | . . . . . . Propulsion . | . . . . . . Utility 2 | . . . 2 . . Weapon . | . . . . . . Parts Attached 43 | . 20 3 6 8 6 Power 6 | . 4 . 1 . 1 Engine 6 | . 4 . 1 . 1 Core . | . . . . . . Reactor . | . . . . . . Propulsion 14 | . 8 1 1 1 3 Treads 12 | . 6 1 1 1 3 Leg 2 | . 2 . . . . Wheel . | . . . . . . Hover . | . . . . . . Flight . | . . . . . . Utility 12 | . 3 . 2 6 1 Device 7 | . 1 . 1 5 . Storage 2 | . 2 . . . . Processor 1 | . . . 1 . . Hackware 1 | . . . . . 1 Protection 1 | . . . . 1 . Artifact . | . . . . . . Weapon 11 | . 5 2 2 1 1 Energy Gun 2 | . 2 . . . . Energy Cannon . | . . . . . . Ballistic Gun 8 | . 2 2 2 1 1 Ballistic Cannon 1 | . 1 . . . . Launcher . | . . . . . . Special Weapon . | . . . . . . Impact Weapon . | . . . . . . Slashing Weapon . | . . . . . . Piercing Weapon . | . . . . . . Special Melee Weapon . | . . . . . . Unidentified Prototypes 2 | . . . 1 1 . Parts Lost 10 | . 2 . . 1 7 Power 2 | . 1 . . . 1 Propulsion 2 | . . . . . 2 Utility 3 | . . . . 1 2 Weapon 3 | . 1 . . . 2 Highest Loss Streak 7 | . 2 . . 1 7 Average Slot Usage (%) 98 | . 99 100 99 95 97 Engine 12 | . 13 14 10 11 11 Treads 19 | . 14 28 22 21 22 Leg 5 | . 13 . . . . Device 4 | . . . 11 8 8 Storage 24 | . 26 28 22 22 22 Processor 3 | . . . 11 8 . Protection 1 | . . . . . 10 Energy Gun 3 | . 9 . . . . Ballistic Gun 16 | . 11 13 13 22 21 Ballistic Cannon 5 | . 7 14 7 . . Naked Turns . | . . . . . . Heaviest Build 57 | 11 45 45 47 54 57 Greatest Support 40 | 20 40 40 40 40 40 Greatest Overweight (x) 2 | . 2 1 1 2 1 Average Overweight (x) . | . . 1 1 1 1 Largest Inventory Capacity 16 | . 16 16 16 16 16 Average Capacity 15 | . 15 16 16 16 16 Most Carried 16 | . 16 16 16 16 16 Average Carried 14 | . 12 15 15 15 15 Final Capacity 16 | 6 16 16 16 16 16 Final Carried 16 | 6 16 16 16 16 11 Class Distribution -------------------- 100% | Mutant Dominant Class ---------------- Mutant | -10/Materials Mutant | -10/Mines Mutant | -9/Materials Mutant | -9/Mines Mutant | -9/Exiles Resources | -11 -10 -10 -9 -9 -9 ----------- Run | Scr Mat Min Mat Min Exi Matter Collected 1162 | 200 510 129 117 206 . Remotely . | . . . . . . Salvage Created 1659 | . 501 69 141 368 580 Parts 125 | . 42 13 5 29 36 Haulers Intercepted 3 | . 2 . 1 . . Recyclers Shooed 1 | . 1 . . . . Parts Field Recycled . | . . . . . . Retrieved Matter . | . . . . . . Parts Self-Destructed . | . . . . . . Prevented . | . . . . . . Kills | -11 -10 -10 -9 -9 -9 ------- Run | Scr Mat Min Mat Min Exi Combat Hostiles Destroyed 47 | . 12 8 3 10 14 Guns 38 | . 10 4 . 10 14 Cannons 9 | . 2 4 3 . . Classes Destroyed 12 | . 5 1 . 3 3 Worker 1 | . . . . 1 . Builder 1 | . . . . 1 . Hauler 3 | . 2 . 1 . . Recycler 1 | . 1 . . . . Operator 1 | . 1 . . . . Swarmer 18 | . 8 6 . 4 . Grunt 20 | . 4 . 3 5 8 Brawler 1 | . . . . 1 . Duelist 1 | . . . . . 1 Hunter 2 | . . . . . 2 Programmer 3 | . . . . . 3 Assembled 2 | . . 2 . . . Best Kill Streak 14 | . 4 3 3 4 14 Combat Bots Only 14 | . 3 3 3 3 14 Max Kills in Single Turn 2 | . 1 2 1 2 1 Gunslinging . | . . . . . . Exploded . | . . . . . . Melee . | . . . . . . Uniques/NPCs Destroyed . | . . . . . . Combat | -11 -10 -10 -9 -9 -9 -------- Run | Scr Mat Min Mat Min Exi Damage Taken 3350 | . 459 371 152 439 1929 Core 559 | . 67 82 10 73 327 Absorbed by Shields . | . . . . . . Core Remaining (%) 70 | 100 . 40 . . . Volleys Fired 90 | . 32 21 12 25 . Largest 2 | . 2 2 2 2 . Hottest 80 | . 80 80 55 46 . Shots Fired 207 | . 62 42 24 50 29 Gun 164 | . 52 21 12 50 29 Cannon 43 | . 10 21 12 . . Launcher . | . . . . . . Special . | . . . . . . Kinetic 185 | . 46 36 24 50 29 Thermal . | . . . . . . Explosive . | . . . . . . Electromagnetic 22 | . 16 6 . . . Robot Hit Streak 12 | . 8 12 10 6 11 Robot Miss Streak 4 | . 4 3 3 4 3 Penetration Max . | . . . . . . Secondary Targets 5 | . 1 . . 4 . Max Gunslinging Chain 1 | . 1 . . 1 . Autonomous 29 | . . . . . 29 Shots Hit Robots 138 | . 40 29 18 28 23 Core Hits 69 | . 21 12 5 15 16 Critical Hits 4 | . 1 1 . . 2 Critical Kills . | . . . . . . Critical Parts Destroyed 4 | . 1 1 . . 2 Melee Attacks . | . . . . . . Impact . | . . . . . . Slashing . | . . . . . . Piercing . | . . . . . . Sneak Attacks . | . . . . . . Combat Hostiles . | . . . . . . Follow-up Attacks . | . . . . . . Damage Inflicted 2244 | . 379 337 245 484 799 Guns 1805 | . 327 128 70 481 799 Cannons 436 | . 52 209 175 . . Explosions . | . . . . . . Melee . | . . . . . . Ramming 3 | . . . . 3 . Kinetic 2089 | . 266 298 245 481 799 Thermal . | . . . . . . Explosive . | . . . . . . Electromagnetic 152 | . 113 39 . . . Impact . | . . . . . . Slashing . | . . . . . . Piercing . | . . . . . . Highest Corruption 5 | . . . . 5 5 Average Corruption 3 | . . . . 5 2 Corruption Purged 5 | . . . . . 5 Effects 12 | . . . . 8 4 Message Errors 4 | . . . . 2 2 Matter Fused 2 | . . . . 1 1 Heat Flow Errors 1 | . . . . 1 . Energy Discharges 1 | . . . . . 1 Parts Rejected 1 | . . . . 1 . Data Loss (minor) 1 | . . . . 1 . Data Loss (major) 1 | . . . . 1 . Targeting Errors 1 | . . . . 1 . Overload Shots . | . . . . . . Overflow Damage 4 | . . 4 . . . Projectiles 4 | . . 4 . . . Explosions . | . . . . . . Melee . | . . . . . . Knockbacks 5 | . . 5 . . . Impact . | . . . . . . Kinetic 5 | . . 5 . . . Secondary . | . . . . . . Self-Inflicted Damage . | . . . . . . Shots . | . . . . . . Rammed 1 | . . . . 1 . Targets Rammed 1 | . . . . 1 . Kicked . | . . . . . . Crushed . | . . . . . . Highest Temperature 215 | . 63 126 44 215 . Average Temperature 33 | . 19 36 21 108 . Received Heat Transfer 549 | . 42 . 87 132 288 Siege Activations . | . . . . . . Robots Corrupted . | . . . . . . Combat Hostiles . | . . . . . . Parts Fried . | . . . . . . Impact Corruptions . | . . . . . . Robots Melted . | . . . . . . Combat Hostiles . | . . . . . . Parts Melted . | . . . . . . Heat Transferred . | . . . . . . Parts Sabotaged . | . . . . . . Parts Stolen . | . . . . . . Parts Stripped . | . . . . . . Power Chain Reactions . | . . . . . . Missiles Intercepted . | . . . . . . Alert | -11 -10 -10 -9 -9 -9 ------- Run | Scr Mat Min Mat Min Exi Peak Influence 200 | . 178 102 104 200 . Initial 40 | . . 2 27 40 . Average 69 | . 73 74 74 61 . Maximum Alert Level 1 | . . . . 1 . Low Security (%) 99 | . 100 100 100 99 . Level 1 . | . . . . . . Level 2 . | . . . . . . Level 3 . | . . . . . . Level 4 . | . . . . . . Level 5 . | . . . . . . High Security . | . . . . . . Max Security . | . . . . . . Squads Dispatched 2 | . 2 . . . . Investigation . | . . . . . . Extermination . | . . . . . . Reinforcement 2 | . 2 . . . . Assault . | . . . . . . Garrison . | . . . . . . Intercept . | . . . . . . Construction Impeded . | . . . . . . Haulers Reinforced . | . . . . . . Stealth | -11 -10 -10 -9 -9 -9 --------- Run | Scr Mat Min Mat Min Exi Distress Signals 2 | . 2 . . . . Communications Jammed . | . . . . . . Distress Signals . | . . . . . . Times Spotted 76 | . 26 11 4 12 23 Peak Tracking Total 23 | . 4 3 3 4 23 Tactical Retreats 5 | . 2 1 . 1 1 Traps | -11 -10 -10 -9 -9 -9 ------- Run | Scr Mat Min Mat Min Exi Traps Triggered 1 | . . . . 1 . Indirectly . | . . . . . . Trap Hack Attempts . | . . . . . . Triggered . | . . . . . . Disarmed . | . . . . . . Reprogrammed . | . . . . . . Reused . | . . . . . . Traps Extracted . | . . . . . . Installed . | . . . . . . Triggered . | . . . . . . Exploded 1 | . . . . . 1 Machines | -11 -10 -10 -9 -9 -9 ---------- Run | Scr Mat Min Mat Min Exi Machines Disabled 1 | . . . . . 1 Max in Single Turn 1 | . . . . . 1 Machines Sabotaged . | . . . . . . Garrisons Compromised . | . . . . . . Overloaded Fab Kills . | . . . . . . Fab Network Shutdowns . | . . . . . . Hacking | -11 -10 -10 -9 -9 -9 --------- Run | Scr Mat Min Mat Min Exi Machines Accessed 8 | . 6 . . 1 1 Terminals 6 | . 6 . . . . Fabricators . | . . . . . . Repair Stations . | . . . . . . Recycling Units . | . . . . . . Scanalyzers . | . . . . . . Garrison Access . | . . . . . . Total Hacks 17 | . 15 . . 1 1 Successful 8 | . 6 . . 1 1 Failed 8 | . 8 . . . . Catastrophic 1 | . 1 . . . . Database Lockouts 1 | . 1 . . . . Manual 4 | . 3 . . . 1 Terminals 15 | . 15 . . . . Fabricators . | . . . . . . Repair Stations . | . . . . . . Recycling Units . | . . . . . . Scanalyzers . | . . . . . . Garrison Access . | . . . . . . Terminal Hacks 8 | . 6 . . 1 1 Robot Analysis 1 | . 1 . . . . Open Door 1 | . . . . 1 . Unreport Threat 2 | . 2 . . . . Locate Traps 2 | . 2 . . . . Zone Layout 1 | . 1 . . . . EX-Prototype ID Bank 1 | . . . . . 1 Fabricator Hacks . | . . . . . . Repair Station Hacks . | . . . . . . Recycling Unit Hacks . | . . . . . . Scanalyzer . | . . . . . . Garrison Access Hacks . | . . . . . . Unauthorized Hacks . | . . . . . . Terminals . | . . . . . . Fabricators . | . . . . . . Repair Stations . | . . . . . . Recycling Units . | . . . . . . Scanalyzers . | . . . . . . Garrison Access . | . . . . . . Data Cores Recovered 1 | . 1 . . . . Used 1 | . 1 . . . . Hacking Detections 5 | . 5 . . . . Full Trace Events 2 | . 2 . . . . Feedback Events . | . . . . . . Feedback Blocked . | . . . . . . Robot Schematics Acquired . | . . . . . . Robots Built . | . . . . . . Matter . | . . . . . . Time . | . . . . . . Total Robot Build Rating . | . . . . . . Part Schematics Acquired . | . . . . . . Parts Built . | . . . . . . Matter . | . . . . . . Time . | . . . . . . Total Part Build Rating . | . . . . . . Parts Repaired . | . . . . . . Time . | . . . . . . Parts Recycled . | . . . . . . Recycled Matter . | . . . . . . Retrieved Matter . | . . . . . . Retrieved Components . | . . . . . . Parts Scanalyzed . | . . . . . . Part Schematics Acquired . | . . . . . . Parts Damaged . | . . . . . . Bothacking | -11 -10 -10 -9 -9 -9 ------------ Run | Scr Mat Min Mat Min Exi Used RIF Installer . | . . . . . . Robots Hacked . | . . . . . . Non-combat . | . . . . . . Combat . | . . . . . . Robot Hacks Applied . | . . . . . . Relay Couplers Released . | . . . . . . Robots Rewired . | . . . . . . Allies Hacked . | . . . . . . Hacks Repelled . | . . . . . . Allies | -11 -10 -10 -9 -9 -9 -------- Run | Scr Mat Min Mat Min Exi Total Allies . | . . . . . . Largest Group . | . . . . . . Highest-Rated Group . | . . . . . . Highest-Rated Ally . | . . . . . . Total Orders . | . . . . . . Ally Attacks . | . . . . . . Total Damage . | . . . . . . Kills . | . . . . . . Allies Corrupted . | . . . . . . Allies Melted . | . . . . . . Intel | -11 -10 -10 -9 -9 -9 ------- Run | Scr Mat Min Mat Min Exi Robot Analysis Total 1 | . 1 . . . . Derelict Logs Recovered 2 | . . 1 . 1 . Drone Launches . | . . . . . . Drone Recoveries . | . . . . . . Exploration | -11 -10 -10 -9 -9 -9 ------------- Run | Scr Mat Min Mat Min Exi Turns Passed 3740 | . 1414 498 266 1075 487 Spaces Moved 1830 | 1 736 237 115 475 266 Core . | . . . . . . Treads 1450 | . 357 237 115 475 266 Legs 380 | 1 379 . . . . Wheels . | . . . . . . Hover . | . . . . . . Flight . | . . . . . . Fastest Speed 120 | 120 120 180 180 180 180 Average Speed 172 | 120 161 180 180 180 180 Slowest Speed 200 | 120 200 180 180 200 180 Overloaded Moves . | . . . . . . Propulsion Burnouts . | . . . . . . Robots Hopped . | . . . . . . Cave-ins Triggered . | . . . . . . Exploration Rate (%) 51 | 2 98 60 12 88 51 Regions Visited 5 Branch Regions 3 Pre-discovered Areas 2 | . . 1 . 1 . Known Exits Taken 1 | . . . 1 . . Unknown Exits Taken 4 | 1 1 1 . 1 . Scrap Searched 3 | . . 2 . 1 . Spaces Dug . | . . . . . . Terrain Destroyed 1 | . . . . . 1 Melee . | . . . . . . Projectile 1 | . . . . . 1 AOE . | . . . . . . Terrain Rammed . | . . . . . . Walls Destroyed . | . . . . . . Machines Disabled . | . . . . . . Actions | -11 -10 -10 -9 -9 -9 --------- Run | Scr Mat Min Mat Min Exi Total 2261 | . 916 271 154 645 275 Wait 214 | . 68 7 13 126 . Move 1825 | . 735 236 114 474 266 Hop . | . . . . . . Pick Up 42 | . 33 1 4 3 1 Fast Attach 15 | . 4 1 3 7 . Attach 24 | . 13 1 3 1 6 Detach 2 | . 2 . . . . Swap 4 | . 3 1 . . . Drop 44 | . 26 3 5 8 2 Fire 90 | . 32 21 12 25 . Melee . | . . . . . . Ram . | . . . . . . Kick . | . . . . . . Crush 1 | . . . . 1 . Escape Stasis . | . . . . . . Rewire . | . . . . . . Trap . | . . . . . . Miscellaneous . | . . . . . . Route ------- -11/Scrapyard -10/Materials (discovered 4 exits: [*Mat x3] / [*Min]) -10/Mines -9/Materials -9/Mines (discovered 3 exits: *Mat x2 / *Exi) -9/Exiles History --------- Turn | Location | Event 1 | -11/Scrapyard | Discovered new exit (range 0) 1 | -11/Scrapyard | Entered Materials 145 | -10/Materials | Discovered new exit (range 15) 154 | -10/Materials | Central database locked down 312 | -10/Materials | Build established: Mutant 473 | -10/Materials | Discovered new exit (range 12) 903 | -10/Materials | Discovered new exit (range 15) 1291 | -10/Materials | Discovered new exit (range 16) 1415 | -10/Materials | Entered Mines 1536 | -10/Mines | Learned location of Zion (-7) 1656 | -10/Mines | YI-UF0 nonchalantly dropped a Grenade Launcher on the ground 1730 | -10/Mines | Assembled infested the area 1863 | -10/Mines | Core integrity fell below 50% 1890 | -10/Mines | Discovered new exit (range 11) 1913 | -10/Mines | Entered Materials 1913 | -9/Materials | Evolved 2 slots: Utility x2 2138 | -9/Materials | Discovered new exit (range 13) 2177 | -9/Materials | Identified exit to Mines 2179 | -9/Materials | Entered Mines 2219 | -9/Mines | Discovered new exit (range 6) 2228 | -9/Mines | Identified exit to Materials 2325 | -9/Mines | Found a damaged Exp. Sensor Array with a note attached 2331 | -9/Mines | Found Prototype Device 2331 | -9/Mines | Identified Exp. Sensor Array 2408 | -9/Mines | Discovered exit to Materials (range 10) 2617 | -9/Mines | A weapon hastily lodged in a ceiling crevice suddenly fell to the ground 3186 | -9/Mines | Met a Derelict who couldn't figure out how to use a Trap Extractor 3247 | -9/Mines | Deemed a non-threat by the Exiles lab entrance 3247 | -9/Mines | Discovered new exit (range 5) 3254 | -9/Mines | Entered Exiles 3299 | -9/Exiles | Met 8R-AWN 3328 | -9/Exiles | Met EX-HEX 3386 | -9/Exiles | Met EX-BIN 3407 | -9/Exiles | Aligned with FarCom system 3409 | -9/Exiles | Given EX-Vault access code 3454 | -9/Exiles | Opened EX-Vault 3497 | -9/Exiles | Warned to stay clear of 0b10 Research branches 3527 | -9/Exiles | Exiles lab attacked by MAIN.C 3621 | -9/Exiles | Found AWS/Gauss 3715 | -9/Exiles | Core integrity fell below 50% 3724 | -9/Exiles | Core integrity fell below 20% 3741 | -9/Exiles | Destroyed by H-55 Commando with Gauss Rifle Last Messages --------------- 03732_ G-34 Mercenary destroyed. 03732_ Slug penetrates Machine. 03732_ Penetrated by Slug. 03732_ Machine disabled. 03732_ Slug penetrates G-34 Mercenary. 03732_ G-34 Mercenary destroyed. 03733_ G-34 Mercenary suffers critical hit. 03733_ Destroyed Ion Engine. 03734_ G-34 Mercenary destroyed. 03734_ Penetrated by Slug. 03735_ Slug penetrates G-34 Mercenary. 03735_ Penetrated by Slug. 03736_ G-34 Mercenary destroyed. 03737_ Slug penetrates G-34 Mercenary. 03737_ Slug penetrates Wall. 03738_ G-34 Mercenary destroyed. 03738_ Penetrated by Slug. 03740_ Slug penetrates G-34 Mercenary. 03740_ G-34 Mercenary destroyed. 03741_ Penetrated by Slug. Map ----- +----------------------------------------------------+ | ?????????????????????????????????????????#" | | ?????????????????????????????????????????#" ## | | ?????????????????????????????????????????#""""""?# | | ?????????????????????????????????????????##"###??# | | ?????????????????????????????????????????????????# | | ?????????????????????????????????????????????????# | | ????????????????????????????????????????????????## | | ????????????????????????????????????????????????#" | | ????????????????????????????????????????????????#" | | ????????????????????????????????????????????????#" | | ????????????????????????????????????????????????#" | | ???????????????????????????????????##???????????#" | | ??????????????????????????????????? """????????#" | | ????????????????" ?????????????????" """????????## | | ??????????????#"" ????????????????? ?????????# | | ?????????????? g??????????????"" ?????????# | | ????????????? ?????????????#"" "#????????# | | ?????????????? "????????????? ""?????????# | | ??????????????? ##????????????" "?????????## | | ???????????????? #???????????# #????????##" | | ????????????????#"" ######???### ###?######"" | | ?????????????????#" " "##### # #"###""""""" | | ?????????????????#" " "" " | | ???????????????????# "" | | ????????????????????# % | | ??????????????????????# @ =%[ | | ??????????????????????### *%=! =%*! | | ????????????????????????## = % *!/% ! | | ?????????????????????????## [%[!%=*% | | ??????????????????????????##" ! /[%! | | ???????????????????????????#"""! = = "" | | ???????????????????????????#"[%|! %=![% #### | | ???????????????????????????" [=* =%[%=[ """#??? | | ???????????????????????????" % [=[%["""###??? | | ??????????????????????????""" = *!%= "##????? | | ??????????????????????????"" |%! % "#?????? | | ???????????????????????????" ! *"??????? | | ???????????????????????????"" =%!??????? | | ???????????????????????????? = ??????? | | ????????????????????????????" ???????? | | ??????????????????????????????" ???????? | | ?????????????????????????????????????????????????? | | ?????????????????????????????????????????????????? | | ?????????????????????????????????????????????????? | | ?????????????????????????????????????????????????? | | ?????????????????????????????????????????????????? | | ?????????????????????????????????????????????????? | | ?????????????????????????????????????????????????? | | ?????????????????????????????????????????????????? | | ?????????????????????????????????????????????????? | +----------------------------------------------------+ Best States ------------- Heat Dissipation 28 Energy Generation 14 Energy Capacity 280 Matter Stores 300 Matter Capacity 300 Sight Range 16 Robot Scan Range 30 Terrain Scan Density 10 Armor Coverage 225 Evasion (%) 40 Recoil Reduction 2 Offensive Hacking 10 Item Schematics ----------------- None Robot Schematics ------------------ None Fabricated ------------ Nothing Alien Tech Used ----------------- None Achievements -------------- None Challenges ------------ None Game ------ Seed RocketDirtyDesublimator Manual? 0 Play Time 00:38:31 Cumulative 87.6 hours Start 2021.11.10 @ 16:54:00 End 2021.11.10 @ 17:31:36 Sessions 1 Manual Loads 0 Difficulty Rogue Special Mode None Game No. 35 Rogue 35 Adventurer 0 Explorer 0 Win Type - Total 1 Types 1/0/0/0/0/0/0/0/0 Lore% 32 Gallery% 53 Achievement% 37 Wizard Run 0 Options --------- ASCII 0 Keyboard 0 Movement Mouse Keybinds 0 Fullscreen 1 Font 18/Terminus Map View 76x50 Tactical HUD 1 Map Filters NONE Filters NONE Steam 1 RUN: d46850d5-bdc2-43f6-a692-e8c4b1797b0a